{"text_format":"1","workbook":"xlsx","n_sheets":2,"sheets":["INVENTARIO ","Categorias DP"],"not_rendered":{"charts":0,"images":2,"macros":1,"external_links":0,"defined_names":34,"comments":0,"pivot_tables":0},"unopened":[],"bounds":{"document_bytes":16777216,"sheet_cells":100000,"rows_first":2000,"rows_last":500,"rows_between":2000,"halvings":0,"cell_chars":16384,"cell_head_chars":4096},"cells_cut":0,"cells_raw":0,"read":"whole","date_system":"1900"}

{"sheet":"INVENTARIO ","index":0,"n_rows":95,"n_cols":12,"rows_kept":95,"cut":false,"hidden":false,"merged":[[89,10,91,10],[89,11,91,11],[80,7,83,7],[75,7,78,7],[75,8,78,8],[80,8,83,8],[85,8,88,8],[85,7,88,7],[85,9,88,9],[80,9,83,9],[89,9,91,9],[89,4,91,4],[70,1,73,1],[70,2,73,2],[75,2,78,2],[80,2,83,2],[75,3,78,3],[75,4,78,4],[85,3,88,3],[3,1,4,1],[0,0,4,0],[0,1,0,11],[1,2,1,11],[3,2,4,3],[4,4,4,6],[2,2,2,11],[3,4,3,11],[4,7,4,11],[80,6,83,6],[80,3,83,3],[80,4,83,4],[80,5,83,5],[12,11,88,11],[75,6,78,6],[75,5,78,5],[70,5,73,5],[70,8,73,8],[70,6,73,6],[70,9,73,9],[75,9,78,9],[70,7,73,7],[70,3,73,3],[70,4,73,4],[93,6,93,8],[89,0,89,1],[91,0,91,1],[85,2,88,2],[90,0,90,1],[92,0,93,0],[89,5,91,5],[89,6,91,6],[89,7,91,7],[89,8,91,8],[85,5,88,5],[85,6,88,6],[70,0,88,0],[75,1,78,1],[80,1,83,1],[85,1,88,1],[94,3,94,4],[94,0,94,1],[6,0,13,0],[15,0,17,0],[85,4,88,4],[59,0,69,0],[19,0,21,0],[23,0,25,0],[51,0,53,0],[55,0,57,0],[27,0,29,0],[31,0,33,0],[35,0,37,0],[39,0,41,0],[43,0,45,0],[47,0,49,0]]}
[null,"Formato de inventario de datos personales por Sistema de tratamiento del Municipio de Apodaca"]
[null,"Área administrativa ","Tesorería Municipal"]
[null,"Titular ","Dirección de Ingresos"]
[null,"Denominación del sistema de tratamiento (proceso o procedimiento)","Tarifa Especial Instituciones Mujeres (excepto casadas)",null,"Indicaciones"]
[null,null,null,null,"Con la finalidad de facilitar el llenado de este inventario, al final de esta hoja de Excel, se encuentran las instrucciones y definiciones de cada uno de los criterios que de la manera más atenta se les invita a llenar. "]
["CATEGORÍA DE LOS DATOS PERSONALES","DATOS PERSONALES","No.","FINALIDAD PARA LA CUAL SE OBTUVIERON","FUNDAMENTO LEGAL QUE FACULTA AL ÁREA ADMINISTRATIVA PARA EL TRATAMIENTO","FORMA DE OBTENCIÓN       DIRECTA/INDIRECTAMENTE DEL TITULAR.","SITIOS DE RESGUARDO","MEDIOS DE ALMACENAMIENTO ","FORMATOS EN LOS QUE SE ENCUENTRA LA INFORMACIÓN (Datos Personales)","PERSONAS QUE TIENEN ACCESO AL SISTEMA DE DATOS PERSONALES","OBSERVACIONES/COMENTARIOS","VOLUMEN DE EXPEDIENTES (CANTIDAD APROXIMADA) CON LOS QUE CUENTA EL ÁREA ADMINISTRATIVA."]
["Datos de identificación\ny contacto.","Nombre",{"$f":"IF(OR(B7=\"Nombre\",B7=\"Estado Civil\",B7=\"Registro Federal de Contribuyentes(RFC)\",B7=\"Clave única de Registro de Población (CURP)\",B7=\"Lugar de nacimiento\",B7=\"Fecha de Nacimiento\",B7=\"Nacionalidad\",B7=\"Domicilio\",B7=\"Teléfono particular\",B7=\"Teléfono celular\",B7=\"Correo electrónico\",B7=\"Firma autógrafa\",B7=\"Firma electrónica\",B7=\"Identificación oficial\",B7=\"Edad\",B7=\"Imagen\"),\"1\",\"\")","v":"1"},"Para la obtención de Tarifa Especial del Impuesto Predial","Ley de Hacienda para los Municipios del Estado de Nuevo León\nARTICULO 21 bis-9.- El impuesto Predial se pagara a una tarifa única especial de 2 cuotas anuales. Cuando se trate de los siguientes casos: Fracción  IX.- b) Mujeres cualquiera que sea su edad, con excepción de casadas.\n","Indirecta","En las oficinas de la Dirección de Ingresos de la Tesorería Municipal","Archiveros con llave resguardados en la Dirección de Ingresos","Físico y electrónico","Auxiliar de Predial",null,725]
[null,"Domicilio","1","Para la obtención de Tarifa Especial del Impuesto Predial","Ley de Hacienda para los Municipios del Estado de Nuevo León\nARTICULO 21 bis-9.- El impuesto Predial se pagara a una tarifa única especial de 2 cuotas anuales. Cuando se trate de los siguientes casos: Fracción  IX.- b) Mujeres cualquiera que sea su edad, con excepción de casadas.\n","Indirecta","En las oficinas de la Dirección de Ingresos de la Tesorería Municipal","Archiveros con llave resguardados en la Dirección de Ingresos","Físico y electrónico","Auxiliar de Predial"]
[null,"Teléfono particular","1","Para la obtención de Tarifa Especial del Impuesto Predial","Ley de Hacienda para los Municipios del Estado de Nuevo León\nARTICULO 21 bis-9.- El impuesto Predial se pagara a una tarifa única especial de 2 cuotas anuales. Cuando se trate de los siguientes casos: Fracción  IX.- b) Mujeres cualquiera que sea su edad, con excepción de casadas.\n","Indirecta","En las oficinas de la Dirección de Ingresos de la Tesorería Municipal","Archiveros con llave resguardados en la Dirección de Ingresos","Físico y electrónico","Auxiliar de Predial"]
[null,"Estado Civil","1","Para la obtención de Tarifa Especial del Impuesto Predial","Ley de Hacienda para los Municipios del Estado de Nuevo León\nARTICULO 21 bis-9.- El impuesto Predial se pagara a una tarifa única especial de 2 cuotas anuales. Cuando se trate de los siguientes casos: Fracción  IX.- b) Mujeres cualquiera que sea su edad, con excepción de casadas.\n","Indirecta","En las oficinas de la Dirección de Ingresos de la Tesorería Municipal","Archiveros con llave resguardados en la Dirección de Ingresos","Físico y electrónico","Auxiliar de Predial"]
[null,"Fecha de Nacimiento","1","Para la obtención de Tarifa Especial del Impuesto Predial","Ley de Hacienda para los Municipios del Estado de Nuevo León\nARTICULO 21 bis-9.- El impuesto Predial se pagara a una tarifa única especial de 2 cuotas anuales. Cuando se trate de los siguientes casos: Fracción  IX.- b) Mujeres cualquiera que sea su edad, con excepción de casadas.\n","Indirecta","En las oficinas de la Dirección de Ingresos de la Tesorería Municipal","Archiveros con llave resguardados en la Dirección de Ingresos","Físico y electrónico","Auxiliar de Predial"]
[null,"Identificación oficial","1","Para la obtención de Tarifa Especial del Impuesto Predial","Ley de Hacienda para los Municipios del Estado de Nuevo León\nARTICULO 21 bis-9.- El impuesto Predial se pagara a una tarifa única especial de 2 cuotas anuales. Cuando se trate de los siguientes casos: Fracción  IX.- b) Mujeres cualquiera que sea su edad, con excepción de casadas.\n","Indirecta","En las oficinas de la Dirección de Ingresos de la Tesorería Municipal","Archiveros con llave resguardados en la Dirección de Ingresos","Físico y electrónico","Auxiliar de Predial"]
[null,"Firma autógrafa","1","Para la obtención de Tarifa Especial del Impuesto Predial","Ley de Hacienda para los Municipios del Estado de Nuevo León\nARTICULO 21 bis-9.- El impuesto Predial se pagara a una tarifa única especial de 2 cuotas anuales. Cuando se trate de los siguientes casos: Fracción  IX.- b) Mujeres cualquiera que sea su edad, con excepción de casadas.\n","Indirecta","En las oficinas de la Dirección de Ingresos de la Tesorería Municipal","Archiveros con llave resguardados en la Dirección de Ingresos","Físico y electrónico","Auxiliar de Predial"]
[null,null,""]
[null,"Datos personales","No.","Finalidad para la cual se obtuvieron","Fundamento legal que faculta al área administrativa para el tratamiento","Forma de obtención Directa/ Indirectamente del Titular.","Sitios de resguardo","Medios de almacenamiento","Columna1","Personas que tienen acceso al sistema de datos personales","Observaciones/Comentarios "]
["Datos sobre características\nfísicas.","No se recaban datos de esta categoría",{"$f":"IF(OR(B16=\"Color de la piel\",B16=\"Color del iris\",B16=\"Color del cabello\",B16=\"Señas particulares\", B16=\"Estatura\", B16=\"Peso\",B16=\"Cicatrices\",B16=\"Tipo de sangre\"),\"1\",\"\")","v":""}]
[null,null,{"$f":"IF(OR(B17=\"Color de la piel\",B17=\"Color del iris\",B17=\"Color del cabello\",B17=\"Señas particulares\", B17=\"Estatura\", B17=\"Peso\",B17=\"Cicatrices\",B17=\"Tipo de sangre\"),\"1\",\"\")","v":""}]
[null,null,""]
[null,"Datos personales","No.","Finalidad para la cual se obtuvieron","Fundamento legal que faculta al área administrativa para el tratamiento","Forma de obtención Directa/ Indirectamente del Titular.","Sitios de resguardo","Medios de almacenamiento","Columna1","Personas que tienen acceso al sistema de datos personales","Observaciones/Comentarios "]
["Datos laborales.","No se recaban datos de esta categoría",{"$f":"IF(OR(B20=\"Puesto o cargo que desempeña o área\",B20=\"Domicilio de trabajo\",B20=\"Correo electrónico institucional\",B20=\"Teléfono institucional\",B20=\"Referencias laborales\", B20=\"Referencias personales\",B20=\"Información generada durante los procesos de reclutamiento, selección y contratación\",B20=\"Trayectoria laboral\",B20=\"Capacitación laboral\"),\"1\",\"\")","v":""}]
[null,null,{"$f":"IF(OR(B21=\"Puesto o cargo que desempeña o área\",B21=\"Domicilio de trabajo\",B21=\"Correo electrónico institucional\",B21=\"Teléfono institucional\",B21=\"Referencias laborales\", B21=\"Referencias personales\",B21=\"Información generada durante los procesos de reclutamiento, selección y contratación\",B21=\"Trayectoria laboral\",B21=\"Capacitación laboral\"),\"1\",\"\")","v":""}]
[null,null,{"$f":"IF(OR(B22=\"Puesto o cargo que desempeña o área\",B22=\"Domicilio de trabajo\",B22=\"Correo electrónico institucional\",B22=\"Teléfono institucional\",B22=\"Referencias laborales\", B22=\"Referencias personales\",B22=\"Información generada durante los procesos de reclutamiento, selección y contratación\",B22=\"Trayectoria laboral\",B22=\"Capacitación laboral\"),\"1\",\"\")","v":""}]
[null,"Datos personales","No.","Finalidad para la cual se obtuvieron","Fundamento legal que faculta al área administrativa para el tratamiento","Forma de obtención Directa/ Indirectamente del Titular.","Sitios de resguardo","Medios de almacenamiento","Columna1","Personas que tienen acceso al sistema de datos personales","Observaciones/Comentarios "]
["Datos académicos.","No se recaban datos de esta categoría",{"$f":"IF(OR(B24=\"Trayectoria educativa\",B24=\"Escolaridad\",B24=\"Títulos\",B24=\"Cédula profesional\",B24=\"Certificados\",B24=\"Reconocimientos\"),\"1\",\"\")","v":""}]
[null,null,{"$f":"IF(OR(B25=\"Trayectoria educativa\",B25=\"Escolaridad\",B25=\"Títulos\",B25=\"Cédula profesional\",B25=\"Certificados\",B25=\"Reconocimientos\"),\"1\",\"\")","v":""}]
[null,null,""]
[null,"Datos personales","No.","Finalidad para la cual se obtuvieron","Fundamento legal que faculta al área administrativa para el tratamiento","Forma de obtención Directa/ Indirectamente del Titular.","Sitios de resguardo","Medios de almacenamiento","Columna1","Personas que tienen acceso al sistema de datos personales","Observaciones/Comentarios "]
["Datos patrimoniales y/o financieros.","No se recaban datos de esta categoría",{"$f":"IF(OR(B28=\"Bienes muebles\",B28=\"Bienes inmuebles\",B28=\"Información financiera\",B28=\"Información fiscal\", B28=\"Historial crediticio\",B28=\"Sueldo\",B28=\"Ingresos\",B28=\"Egresos\",B28=\"Cuentas bancarias / número de Cta.\",B28=\"Número de tarjetas de crédito /débito\",B28=\"Código de seguridad tarjeta\",B28=\"Fecha de vencimiento\",B28=\"Seguros\",B28=\"Afores\"),\"1\",\"\")","v":""}]
[null,null,{"$f":"IF(OR(B29=\"Bienes muebles\",B29=\"Bienes inmuebles\",B29=\"Información financiera\",B29=\"Información fiscal\", B29=\"Historial crediticio\",B29=\"Sueldo\",B29=\"Ingresos\",B29=\"Egresos\",B29=\"Cuentas bancarias / número de Cta.\",B29=\"Número de tarjetas de crédito /débito\",B29=\"Código de seguridad tarjeta\",B29=\"Fecha de vencimiento\",B29=\"Seguros\",B29=\"Afores\"),\"1\",\"\")","v":""}]
[null,null,""]
[null,"Datos personales","No.","Finalidad para la cual se obtuvieron","Fundamento legal que faculta al área administrativa para el tratamiento","Forma de obtención Directa/ Indirectamente del Titular.","Sitios de resguardo","Medios de almacenamiento","Columna1","Personas que tienen acceso al sistema de datos personales","Observaciones/Comentarios "]
["Datos biométricos.","No se recaban datos de esta categoría",{"$f":"IF(OR(B32=\"Imagen del iris\",B32=\"Mapa de venas\",B32=\"Huella dactilar\",B32=\"Palma de la mano\"),\"1\",\"\")","v":""}]
[null,null,{"$f":"IF(OR(B33=\"Imagen del iris\",B33=\"Mapa de venas\",B33=\"Huella dactilar\",B33=\"Palma de la mano\"),\"1\",\"\")","v":""}]
[null,null,""]
[null,"Datos personales","No.","Finalidad para la cual se obtuvieron","Fundamento legal que faculta al área administrativa para el tratamiento","Forma de obtención Directa/ Indirectamente del Titular.","Sitios de resguardo","Medios de almacenamiento","Columna1","Personas que tienen acceso al sistema de datos personales","Observaciones/Comentarios "]
["Datos migratorios.","No se recaban datos de esta categoría",{"$f":"IF(OR(B36=\"Entradas al país\",B36=\"Salidas del país\",B36=\"Tiempo de permanencia en el país\",B36=\"Calidad migratoria\",B36=\"Derechos de residencia\",B36=\"Aseguramiento\",B36=\"Repatriación\"),\"1\",\"\")","v":""}]
[null,null,{"$f":"IF(OR(B37=\"Entradas al país\",B37=\"Salidas del país\",B37=\"Tiempo de permanencia en el país\",B37=\"Calidad migratoria\",B37=\"Derechos de residencia\",B37=\"Aseguramiento\",B37=\"Repatriación\"),\"1\",\"\")","v":""}]
[null,null,""]
[null,"Datos personales","No.","Finalidad para la cual se obtuvieron","Fundamento legal que faculta al área administrativa para el tratamiento","Forma de obtención Directa/ Indirectamente del Titular.","Sitios de resguardo","Medios de almacenamiento","Columna1","Personas que tienen acceso al sistema de datos personales","Observaciones/Comentarios "]
["Datos sobre pasatiempos, entretenimiento y diversión.","No se recaban datos de esta categoría",{"$f":"IF(OR(B40=\"Pasatiempos\",B40=\"Aficiones\",B40=\"Deportes\",B40=\"Juegos de su interés\"),\"1\",\"\")","v":""}]
[null,null,""]
[null,null,""]
[null,"Datos personales","No.","Finalidad para la cual se obtuvieron","Fundamento legal que faculta al área administrativa para el tratamiento","Forma de obtención Directa/ Indirectamente del Titular.","Sitios de resguardo","Medios de almacenamiento","Columna1","Personas que tienen acceso al sistema de datos personales","Observaciones/Comentarios "]
["Datos sobre la ideología;\ncreencias religiosas, filosóficas o morales; opiniones políticas y afiliación sindical.","No se recaban datos de esta categoría",{"$f":"IF(OR(B44=\"Posturas ideológicas\",B44=\"Religión que profesa\",B44=\"Posturas filosóficas\",B44=\"Posturas morales\",B44=\"Posturas políticas\",B44=\"Pertenencia a un sindicato\"),\"1\",\"\")","v":""}]
[null,null,{"$f":"IF(OR(B45=\"Posturas ideológicas\",B45=\"Religión que profesa\",B45=\"Posturas filosóficas\",B45=\"Posturas morales\",B45=\"Posturas políticas\",B45=\"Pertenencia a un sindicato\"),\"1\",\"\")","v":""}]
[null,null,""]
[null,"Datos personales","No.","Finalidad para la cual se obtuvieron","Fundamento legal que faculta al área administrativa para el tratamiento","Forma de obtención Directa/ Indirectamente del Titular.","Sitios de resguardo","Medios de almacenamiento","Columna1","Personas que tienen acceso al sistema de datos personales","Observaciones/Comentarios "]
["Datos de salud.","No se recaban datos de esta categoría",{"$f":"IF(OR(B48=\"Estado de salud físico presente, pasado o futuro\",B48=\"Diagnóstico\",B48=\"Estado de salud mental presente, pasado o futuro\",B48=\"Información genética\"),\"1\",\"\")","v":""}]
[null,null,""]
[null,null,{"$f":"IF(OR(B50=\"Estado de salud físico presente, pasado o futuro\",B50=\"Diagnóstico\",B50=\"Estado de salud mental presente, pasado o futuro\",B50=\"Información genética\"),\"1\",\"\")","v":""}]
[null,"Datos personales","No.","Finalidad para la cual se obtuvieron","Fundamento legal que faculta al área administrativa para el tratamiento","Forma de obtención Directa/ Indirectamente del Titular.","Sitios de resguardo","Medios de almacenamiento","Columna1","Personas que tienen acceso al sistema de datos personales","Observaciones/Comentarios "]
["Datos sobre vida sexual.","No se recaban datos de esta categoría",{"$f":"IF(OR(B52=\"Preferencias sexuales\",B52=\"Prácticas o hábitos sexuales\"),\"1\",\"\")","v":""}]
[null,null,{"$f":"IF(OR(B53=\"Preferencias sexuales\",B53=\"Prácticas o hábitos sexuales\"),\"1\",\"\")","v":""}]
[null,null,""]
[null,"Datos personales","No.","Finalidad para la cual se obtuvieron","Fundamento legal que faculta al área administrativa para el tratamiento","Forma de obtención Directa/ Indirectamente del Titular.","Sitios de resguardo","Medios de almacenamiento","Columna1","Personas que tienen acceso al sistema de datos personales","Observaciones/Comentarios "]
["Datos de origen étnico\no racial.","No se recaban datos de esta categoría",{"$f":"IF(OR(B56=\"Pertenencia a un pueblo, etnia o región\",B56=\"Lengua originaria\", B56=\"Costumbres\"),\"1\",\" \")","v":" "}]
[null,null,{"$f":"IF(OR(B57=\"Pertenencia a un pueblo, etnia o región\",B57=\"Lengua originaria\", B57=\"Costumbres\"),\"1\",\" \")","v":" "}]
[null,null,{"$f":"IF(OR(B58=\"Pertenencia a un pueblo, etnia o región\",B58=\"Lengua originaria\", B58=\"Costumbres\"),\"1\",\" \")","v":" "}]
[null,"Datos personales","No.","Finalidad para la cual se obtuvieron","Fundamento legal que faculta al área administrativa para el tratamiento","Forma de obtención Directa/ Indirectamente del Titular.","Sitios de resguardo","Medios de almacenamiento","Columna1","Personas que tienen acceso al sistema de datos personales","Observaciones/Comentarios "]
["Otros ","Expediente Catastral",null,"Para la obtención de Tarifa Especial del Impuesto Predial","Ley de Hacienda para los Municipios del Estado de Nuevo León\nARTICULO 21 bis-9.- El impuesto Predial se pagara a una tarifa única especial de 2 cuotas anuales. Cuando se trate de los siguientes casos: Fracción  IX.- b) Mujeres cualquiera que sea su edad, con excepción de casadas.\n","Indirecta","En las oficinas de la Dirección de Ingresos de la Tesorería Municipal","Archiveros con llave resguardados en la Dirección de Ingresos","Físico y electrónico","Auxiliar de Predial"]
[null,"Superficie de Terreno",{"$f":"IF(OR(B61=ISTEXT(B61),),\"1\"\"\")","v":false},"Para la obtención de Tarifa Especial del Impuesto Predial","Ley de Hacienda para los Municipios del Estado de Nuevo León\nARTICULO 21 bis-9.- El impuesto Predial se pagara a una tarifa única especial de 2 cuotas anuales. Cuando se trate de los siguientes casos: Fracción  IX.- b) Mujeres cualquiera que sea su edad, con excepción de casadas.\n","Indirecta","En las oficinas de la Dirección de Ingresos de la Tesorería Municipal","Archiveros con llave resguardados en la Dirección de Ingresos","Físico y electrónico","Auxiliar de Predial"]
[null,"Superficie de Construcción",false,"Para la obtención de Tarifa Especial del Impuesto Predial","Ley de Hacienda para los Municipios del Estado de Nuevo León\nARTICULO 21 bis-9.- El impuesto Predial se pagara a una tarifa única especial de 2 cuotas anuales. Cuando se trate de los siguientes casos: Fracción  IX.- b) Mujeres cualquiera que sea su edad, con excepción de casadas.\n","Indirecta","En las oficinas de la Dirección de Ingresos de la Tesorería Municipal","Archiveros con llave resguardados en la Dirección de Ingresos","Físico y electrónico","Auxiliar de Predial"]
[null,"Acta de Nacimiento",false,"Para la obtención de Tarifa Especial del Impuesto Predial","Ley de Hacienda para los Municipios del Estado de Nuevo León\nARTICULO 21 bis-9.- El impuesto Predial se pagara a una tarifa única especial de 2 cuotas anuales. Cuando se trate de los siguientes casos: Fracción  IX.- b) Mujeres cualquiera que sea su edad, con excepción de casadas.\n","Indirecta","En las oficinas de la Dirección de Ingresos de la Tesorería Municipal","Archiveros con llave resguardados en la Dirección de Ingresos","Físico y electrónico","Auxiliar de Predial"]
[null,"Carta de Soltería",false,"Para la obtención de Tarifa Especial del Impuesto Predial","Ley de Hacienda para los Municipios del Estado de Nuevo León\nARTICULO 21 bis-9.- El impuesto Predial se pagara a una tarifa única especial de 2 cuotas anuales. Cuando se trate de los siguientes casos: Fracción  IX.- b) Mujeres cualquiera que sea su edad, con excepción de casadas.\n","Indirecta","En las oficinas de la Dirección de Ingresos de la Tesorería Municipal","Archiveros con llave resguardados en la Dirección de Ingresos","Físico y electrónico","Auxiliar de Predial"]
[null,"Nombre del conyuge",false,"Para la obtención de Tarifa Especial del Impuesto Predial","Ley de Hacienda para los Municipios del Estado de Nuevo León\nARTICULO 21 bis-9.- El impuesto Predial se pagara a una tarifa única especial de 2 cuotas anuales. Cuando se trate de los siguientes casos: Fracción  IX.- b) Mujeres cualquiera que sea su edad, con excepción de casadas.\n","Indirecta","En las oficinas de la Dirección de Ingresos de la Tesorería Municipal","Archiveros con llave resguardados en la Dirección de Ingresos","Físico y electrónico","Auxiliar de Predial","En caso de ser Viuda o Divorciada"]
[null,"Acta de Nacimiento del Conyuge",false,"Para la obtención de Tarifa Especial del Impuesto Predial","Ley de Hacienda para los Municipios del Estado de Nuevo León\nARTICULO 21 bis-9.- El impuesto Predial se pagara a una tarifa única especial de 2 cuotas anuales. Cuando se trate de los siguientes casos: Fracción  IX.- b) Mujeres cualquiera que sea su edad, con excepción de casadas.\n","Indirecta","En las oficinas de la Dirección de Ingresos de la Tesorería Municipal","Archiveros con llave resguardados en la Dirección de Ingresos","Físico y electrónico","Auxiliar de Predial","En caso de ser Viuda o Divorciada"]
[null,"Fecha de Nacimiento del Conyuge",false,"Para la obtención de Tarifa Especial del Impuesto Predial","Ley de Hacienda para los Municipios del Estado de Nuevo León\nARTICULO 21 bis-9.- El impuesto Predial se pagara a una tarifa única especial de 2 cuotas anuales. Cuando se trate de los siguientes casos: Fracción  IX.- b) Mujeres cualquiera que sea su edad, con excepción de casadas.\n","Indirecta","En las oficinas de la Dirección de Ingresos de la Tesorería Municipal","Archiveros con llave resguardados en la Dirección de Ingresos","Físico y electrónico","Auxiliar de Predial","En caso de ser Viuda o Divorciada"]
[null,"Acta de Matrimonio",false,"Para la obtención de Tarifa Especial del Impuesto Predial","Ley de Hacienda para los Municipios del Estado de Nuevo León\nARTICULO 21 bis-9.- El impuesto Predial se pagara a una tarifa única especial de 2 cuotas anuales. Cuando se trate de los siguientes casos: Fracción  IX.- b) Mujeres cualquiera que sea su edad, con excepción de casadas.\n","Indirecta","En las oficinas de la Dirección de Ingresos de la Tesorería Municipal","Archiveros con llave resguardados en la Dirección de Ingresos","Físico y electrónico","Auxiliar de Predial","En caso de ser Viuda o Divorciada"]
[null,"Acta de Defunsión",false,"Para la obtención de Tarifa Especial del Impuesto Predial","Ley de Hacienda para los Municipios del Estado de Nuevo León\nARTICULO 21 bis-9.- El impuesto Predial se pagara a una tarifa única especial de 2 cuotas anuales. Cuando se trate de los siguientes casos: Fracción  IX.- b) Mujeres cualquiera que sea su edad, con excepción de casadas.\n","Indirecta","En las oficinas de la Dirección de Ingresos de la Tesorería Municipal","Archiveros con llave resguardados en la Dirección de Ingresos","Físico y electrónico","Auxiliar de Predial"]
[]
["Terceros / Encargados.","Proveedor/ Tercero",null,"No aplica","No aplica","No aplica","No aplica","No aplica",null,"No aplica"]
[null,null,null,"NO APLICA ","NO APLICA ","NO APLICA ","NO APLICA ","NO APLICA ","NO APLICA ","NO APLICA "]
[null,null,null,"NO APLICA ","NO APLICA ","NO APLICA ","NO APLICA ","NO APLICA ","NO APLICA ","NO APLICA "]
[null,null,null,"NO APLICA ","NO APLICA ","NO APLICA ","NO APLICA ","NO APLICA ","NO APLICA ","NO APLICA "]
[]
[null,"Actividad",null,"No aplica","No aplica","No aplica","No aplica","No aplica",null,"No aplica"]
[null,null,null,"NO APLICA ","NO APLICA ","NO APLICA ","NO APLICA ","NO APLICA ","NO APLICA ","NO APLICA "]
[null,null,null,"NO APLICA ","NO APLICA ","NO APLICA ","NO APLICA ","NO APLICA ","NO APLICA ","NO APLICA "]
[null,null,null,"NO APLICA ","NO APLICA ","NO APLICA ","NO APLICA ","NO APLICA ","NO APLICA ","NO APLICA "]
[]
[null,"Relación",null,"No aplica","No aplica","No aplica","No aplica","No aplica",null,"No aplica"]
[null,null,null,"NO APLICA ","NO APLICA ","NO APLICA ","NO APLICA ","NO APLICA ","NO APLICA ","NO APLICA "]
[null,null,null,"NO APLICA ","NO APLICA ","NO APLICA ","NO APLICA ","NO APLICA ","NO APLICA ","NO APLICA "]
[null,null,null,"NO APLICA ","NO APLICA ","NO APLICA ","NO APLICA ","NO APLICA ","NO APLICA ","NO APLICA "]
[]
[null,"Instrumento legal",null,"No aplica","No aplica","No aplica","No aplica","No aplica",null,"No aplica"]
[null,null,null,"NO APLICA ","NO APLICA ","NO APLICA ","NO APLICA ","NO APLICA ","NO APLICA ","NO APLICA "]
[null,null,null,"NO APLICA ","NO APLICA ","NO APLICA ","NO APLICA ","NO APLICA ","NO APLICA ","NO APLICA "]
[null,null,null,"NO APLICA ","NO APLICA ","NO APLICA ","NO APLICA ","NO APLICA ","NO APLICA ","NO APLICA "]
["DATOS PERSONALES UTILIZADOS EN EL SISTEMA DE TRATAMIENTO.",null,null,{"$f":"COUNTIF(C7:C70,\"1\")","v":7}]
["VOLUMEN DE FORMATOS.",null,null,{"$f":"L7","v":725}]
["CANTIDAD GLOBAL DE DATOS PERSONALES. ",null,null,{"$f":"D90*D91","v":5075}]
["INSTRUCCIONES Y DEFINICIONES PARA EL LLENADO DEL INVENTARIO.","ENCARGADOS ",null,"FINALIDADES","FUNDAMENTO LEGAL","FORMA DE OBTENCIÓN","SITIOS DE RESGUARDO","MEDIOS DE ALMACENAMIENTO","FORMATOS EN LOS QUE SE ENCUENTRA LA INFORMACIÓN.","PERSONAS QUE TIENE ACCESO A LOS SISTEMAS DE DATOS PERSONALES","Observaciones","VOLUMEN DE EXPEDIENTES (CANTIDAD APROXIMADA) CON LOS QUE CUENTA EL ÁREA ADMINISTRATIVA."]
[null,"Ley de Protección de Datos Personales en Posesión de los Sujetos Obligados del Estado de Nuevo León.\n\nArtículo 3 fracción XV. Encargado: La persona física o jurídica, pública o privada, ajena a la organización del responsable, que sola o conjuntamente en otras trate datos personales a nombre y por cuenta del responsable.","Favor de seleccionar \"X\" en los datos personales identificados para substanciar los procesos o procedimientos.","Ley de Protección de Datos Personales en Posesión de los Sujetos Obligados del Estado de Nuevo León.\n\nArtículo 18. Todo tratamiento de datos personales que efectúe el responsable deberá estar justificado por finalidades concretas, lícitas, explícitas y legítimas, relacionadas con las atribuciones que la normatividad aplicable les confiera.\n\nEl responsable podrá tratar datos personales para finalidades distintas a aquéllas establecidas en el aviso de privacidad, siempre y cuando cuente con atribuciones conferidas en la ley y medie el consentimiento del titular, salvo que sea una persona reportada como desaparecida, en los términos previstos en la presente Ley y demás disposiciones que resulten aplicables en la materia.","Artículo 17 de la LPDPPSONL. El tratamiento de datos personales por parte del responsable deberá sujetarse a las facultades o atribuciones que la normatividad aplicable les confiera.\n\nEn ese sentido, se deberá agregar el fundamento legal, identificando leyes, tratados o acuerdos internacionales, reglamentos, lineamientos, entre otros, con sus respectivos artículos, que facultan al área administrativa para llevar a cabo el tratamiento, en vista de que el responsable,debe realizar su actuar respecto al tratamiento de los datos personales, sujetándose a las facultades o atribuciones que la normatividad aplicable le confiera, es decir, los datos personales tienen que ser tratados por el responsable de manera lícita, lo que significa que el responsable sólo podrá hacer con los datos personales aquello que esté legalmente permitido.","I.-Directamente del titular:\n   De manera personas, con la presencia\n   física del titular de los datos personales\n   o su representante, en su caso.\n      a) Vía telefónica\n      b) Por correo electrónico.\n      c) Por internet o sistema informático. \n      d) Por escrito presentado directamente\n          en las oficinas del sujeto obligado.\n      e) Por escrito enviado por mensajería.","Mediante los formatos físicos y electrónicos, se obtienen datos de carácter personal, mismos que se resguardan en los medios de almacenamiento, los cuales a su vez se encuentran en los sitios de resguardo.\n\nEn tal virtud, al señalar la información que se solicita en cada rubro de la presente tabla, nos deja en posibilidad de implementar medidas de seguridad por capas, tal como a continuación se ilustra:\n\nPrimer filtro es un sitio de resguardo donde se encuentren los medios de almacenamiento, es decir, de manera enunciativa mas no limitativa, para acceder a los mismos, dicho sitio seria en las instalaciones de la COTAI, institución que cuenta con un sistema de alarma.\n\nSegundo filtro, acceso a los medios de almacenamiento, por ejemplo: archivero bajo llave donde se alojan los expedientes.\n\nTercer filtro, acceso al formato en los que se encuentra la información, es decir el documento o documentos en los que se encuentran inmersos los datos personales.",null,null,"Con la finalidad tener identificado quienes son las personas que acceden al sistema de tratamiento, en este rubro deberán señalar únicamente el puesto o cargo con el que se ostentan. ","En caso de tener algún supuesto  en los que existan dudas, o en el que se quisiera abundar, favor de agregar en este apartado. ","En esta columna, se les solicita de la manera mas atenta que ingresen la cantidad expedientes con los que cuenta el área administrativa para este sistema de tratamiento.\n\nLo anterior en la inteligencia de que los datos personales se encuentran almacenados en archivos físicos o electrónicos, y que en consecuencia, al acomularlos de manera órdenada y cronológica para substanciar algún proceso o procedimiento por parte del sujeto obligado, se crea un expediente. \n\nAsi pues, resulta importante señalar que al ingresar la cantidad aproximada de los expedientes con los que cuenta, adminiculado con los datos personales que se recaban en el proceso o procedimiento , se podrá obtener un aproximado de los datos personales que se manejan en el sistema de tratamiento en comento, mismo que podrá utilizarse como referencia al momento de elaborar el análisis de riesgos y brecha a la seguridad de los datos personales."]
[null,null,null,"Formato General de Inventario de Datos Personales elaborado por la Comisión de Transparencia y Acceso a la Información del Estado de Nuevo León, autorizado para uso de los Responsables que conforman el Padrón de Sujetos Obligados en materia de protección de datos personales de esta entidad, lo anterior  atento a lo establecido por los artículos 38 fracción III y 41 fracción I, 105 fracciones XV, XVIII, XIX, XXIII de la Ley de Protección de Datos Personales en Posesión de los Sujetos Obligados del Estado de Nuevo León, así como el diverso 54 de los Lineamientos de Protección de Datos Personales para los Sujetos Obligados del Estado de Nuevo León. ",null,"II.- Indirectamente del Titular:\n\n .-Mediante una transferencia:\n        a) Quien transfiere los datos personales \n         y para que fines.\n        b) Medios por los que se realiza la \n         transferencia.\n\n.-De una fuente de acceso al público:\n      Base de datos que puede ser consultada\n      por cualquier persona, cuyo requisito, en\n      su caso, es el pago de una contraprestación\n      por el servicio.\n      No requiere del consentimiento del titular\n      del dato personal para acceder a éste.\n\na) las páginas de internet o medios remotos o locales de comunicación  electrónica, óptica\ny de otra tecnología, siempre que el sitio donde se encuentren los datos personales\nesté concebido para facilitar información al público y esté abierto a la consulta general;\n\nb) los directorios telefónicos en términos de la normativa específica;\n\nc) los diarios, gacetas o boletines oficiales, de acuerdo con su normativa;\n\nd) los medios de comunicación social y\n\ne) los registros públicos conforme a las disposiciones que les resulten aplicables.","Sitios de resguardo: Toda localización donde se resguarden los medios de almacenamiento, tanto físicos como electrónicos (por ejemplo, la casa, la empresa o las instalaciones de un tercero).","Medios de almacenamiento Físicos: Todo recurso inteligible a simple vista y con el que se puede interactuar sin la necesidad de ningún aparato que procese su contenido para examinar, modificar o almacenar datos.\n\n\nMedios de almacenamiento Electrónicos: Todo recurso al que se puede acceder sólo mediante el uso de equipo de cómputo que procese su contenido para examinar, modificar  o almacenar los datos personales.\n\nPor ejemplo:\na) Discos duros (ya sean del equipo de computo o portátiles)\nb) Memorias extraíbles como USB o SD, CDs, Blue-rays\nc) El uso de almacenamiento de servicios en línea (ejemplo nube, o la red electrónica interna \"Carpeta COMUN\")  ","En este apartado, deberán señalar como es que concentran los datos personales, pudiendo ser:\n\n       I) Físicamente\n       II) Electrónicamente o,\n       III) Mixto \n"]

{"sheet":"Categorias DP","index":1,"n_rows":18,"n_cols":15,"rows_kept":18,"cut":false,"hidden":false,"merged":[]}
["Categorías de datos personales","Datos de Identificación y Contacto ","Datos sobre características físicas ","Datos laborales ","Datos Académicos","Datos patrimoniales ","Datos biométricos","Datos Migratorios","Datos sobre pasatiempos, entretenimiento y diversión","Datos sobre la ideología; creencias religiosas, filosóficas o morales; opiniones políticas y afiliación sindical:","Datos de salud","Datos sobre vida sexual","Datos de origen étnico o racial","Forma de Obtención de los Datos Personales","Formatos de la base de datos"]
["Identificación_y_Contacto ","No se recaban datos de esta categoría","No se recaban datos de esta categoría","No se recaban datos de esta categoría","No se recaban datos de esta categoría","No se recaban datos de esta categoría","No se recaban datos de esta categoría","No se recaban datos de esta categoría","No se recaban datos de esta categoría","No se recaban datos de esta categoría","No se recaban datos de esta categoría","No se recaban datos de esta categoría","No se recaban datos de esta categoría","Directa","Físico"]
["Características_físicas","Nombre","Color de la piel","Puesto o cargo que desempeña o área","Trayectoria educativa","Bienes muebles","Imagen del iris","Entradas al país","Pasatiempos","Posturas ideológicas","Estado de salud físico presente, pasado o futuro","Preferencias sexuales","Pertenencia a un pueblo, etnia o región","Indirecta","Electrónico "]
["Datos sobre características físicas ","Estado Civil","Color del iris","Domicilio de trabajo","Escolaridad","Bienes inmuebles","Mapa de venas","Salidas del país","Aficiones","Religión que profesa","Diagnóstico","Prácticas o hábitos sexuales","Lengua originaria","No aplica","Físico y electrónico"]
["Datos laborales ","Registro Federal de Contribuyentes(RFC)","Color del cabello","Correo electrónico institucional","Títulos","Información financiera","Huella dactilar","Tiempo de permanencia en el país","Deportes","Posturas filosóficas","Estado de salud mental presente, pasado o futuro",null,"Costumbres",null,"No aplica"]
["Datos Académicos","Clave única de Registro de Población (CURP)","Señas particulares","Teléfono institucional","Cédula profesional","Información fiscal","Palma de la mano","Calidad migratoria","Juegos de su interés","Posturas morales","Información genética"]
["Datos patrimoniales ","Lugar de nacimiento","Estatura","Referencias laborales","Certificados","Historial crediticio",null,"Derechos de residencia",null,"Posturas políticas"]
["Datos biométricos","Fecha de Nacimiento","Peso","Referencias personales","Reconocimientos","Sueldo",null,"Aseguramiento",null,"Pertenencia a un sindicato"]
["Datos Migratorios","Nacionalidad","Cicatrices","Información generada durante los procesos de reclutamiento, selección y contratación",null,"Ingresos",null,"Repatriación"]
["Datos sobre pasatiempos, entretenimiento y diversión","Domicilio","Tipo de sangre","Trayectoria laboral",null,"Egresos"]
["Datos sobre la ideología; creencias religiosas, filosóficas o morales; opiniones políticas y afiliación sindical:","Teléfono particular",null,"Capacitación laboral",null,"Cuentas bancarias / número de Cta."]
["Datos de salud","Teléfono celular",null,null,null,"Número de tarjetas de crédito /débito"]
["Datos de origen étnico o racial","Correo electrónico",null,null,null,"Código de seguridad tarjeta"]
[null,"Firma autógrafa",null,null,null,"Fecha de vencimiento"]
[null,"Firma electrónica",null,null,null,"Seguros"]
[null,"Identificación oficial",null,null,null,"Afores"]
[null,"Edad"]
[null,"Imagen"]